bitfinex/quotes_BTCUSD_20251110
["timestamp","ask_amount","ask_price","bid_price","bid_amount"]
[1762736747133,0.2238912,106350.0,106330.0,0.4359639]
[1762736747339,0.2238912,106350.0,106340.0,0.18807598]
[1762736747535,0.18807598,106340.0,106330.0,0.24787023]
[1762736747738,0.18807598,106340.0,106330.0,0.43549367]
[1762736748033,0.31922851,106350.0,106330.0,0.43549367]
[1762736748237,0.21700199,106350.0,106340.0,0.18807598]
[1762736748465,0.21700199,106350.0,106330.0,0.5331739]
[1762736748672,0.21700199,106350.0,106340.0,0.20688357]
[1762736748832,0.21699829,106350.0,106340.0,0.20688357]
[1762736749178,0.21699829,106350.0,106340.0,0.01880759]
[1762736749376,0.18807598,106340.0,106330.0,0.8561739]
[1762736749576,0.18807598,106340.0,106330.0,0.99903265]
[1762736749782,0.21399829,106350.0,106330.0,0.99903265]
[1762736749987,0.21399829,106350.0,106330.0,0.8561739]
[1762736750158,0.002,106340.0,106330.0,0.8561739]
[1762736750365,0.002,106340.0,106330.0,0.99387306]
[1762736750525,0.00262797,106340.0,106330.0,1.05876306]
[1762736750865,0.18870395,106340.0,106330.0,0.84926306]
[1762736751295,0.27847426,106340.0,106330.0,0.2]
[1762736751877,0.28047426,106340.0,106330.0,0.2]
[1762736752282,0.00262797,106340.0,106330.0,0.40876513]
[1762736752504,0.19070395,106340.0,106330.0,0.59732903]
[1762736752704,0.19070395,106340.0,106330.0,0.69453903]
[1762736752908,0.00262797,106340.0,106330.0,0.69453903]
[1762736754329,0.19070395,106340.0,106330.0,0.69453903]
[1762736754623,0.19070395,106340.0,106330.0,0.59732903]
[1762736754831,0.19070395,106340.0,106330.0,0.40923536]
[1762736754977,0.24020395,106340.0,106330.0,0.34434536]
[1762736755178,0.18809367,106330.0,106320.0,0.52384739]
[1762736755377,0.20465367,106330.0,106320.0,0.34007635]
[1762736755600,0.20465367,106330.0,106320.0,0.52818771]
[1762736755802,0.20465367,106330.0,106320.0,0.34007635]
[1762736756541,0.25382367,106330.0,106320.0,0.34007635]
[1762736756691,0.29823546,106330.0,106320.0,0.34007635]
[1762736756895,0.29823546,106330.0,106320.0,0.20037712]
[1762736758284,0.29823546,106330.0,106320.0,0.00037712]
[1762736758542,0.25480367,106330.0,106320.0,0.00037712]
[1762736759415,0.25680367,106330.0,106320.0,0.00037712]
[1762736761152,0.01856,106330.0,106320.0,0.18848848]
[1762736761397,0.20715367,106330.0,106320.0,0.18848848]
[1762736761615,0.25632367,106330.0,106320.0,0.00037712]
[1762736761827,0.30487346,106330.0,106320.0,0.00037712]
[1762736761999,22.30487346,106330.0,106320.0,0.00037712]
[1762736762202,22.11677979,106330.0,106320.0,0.18848848]
[1762736762406,22.25631367,106330.0,106320.0,0.00037712]
[1762736763378,22.63857743,106330.0,106320.0,0.00037712]
[1762736764783,22.25631367,106330.0,106320.0,0.00037712]
[1762736766982,22.01856,106330.0,106320.0,0.18848848]
[1762736767237,22.002,106330.0,106320.0,0.57186858]
[1762736767592,22.002,106330.0,106320.0,0.60026149]
[1762736767815,22.01539,106330.0,106320.0,0.50613149]
[1762736768342,22.19009367,106330.0,106320.0,0.82913149]
[1762736768545,22.20348367,106330.0,106320.0,0.82913149]
[1762736768757,22.20348367,106330.0,106320.0,0.76363149]
[1762736768981,22.002,106330.0,106320.0,0.76363149]
[1762736769188,22.30826685,106330.0,106320.0,0.00037712]
[1762736769403,22.8220912,106330.0,106320.0,0.00037712]
[1762736772344,22.8200912,106330.0,106320.0,0.00037712]
[1762736772712,22.8210912,106330.0,106320.0,0.00037712]
[1762736772913,22.8200912,106330.0,106320.0,0.00037712]
[1762736773121,22.8200912,106330.0,106320.0,1e-08]
[1762736773122,23.17927348,106330.0,106320.0,1e-08]
[1762736773332,23.19227347,106330.0,106320.0,1e-08]
[1762736773540,23.18227348,106330.0,106320.0,1e-08]
[1762736773752,23.19227347,106330.0,106320.0,1e-08]
[1762736775265,23.18927347,106330.0,106320.0,1e-08]
[1762736775772,23.19927346,106330.0,106320.0,1e-08]
[1762736775978,23.19927346,106330.0,106320.0,0.00100001]
[1762736776146,23.21127346,106330.0,106320.0,1e-08]
[1762736776342,0.18812905,106310.0,106300.0,0.0004]
[1762736776547,0.81212731,106310.0,106300.0,0.0004]
[1762736776748,0.81212731,106310.0,106300.0,0.00086618]
[1762736776960,0.29830296,106310.0,106300.0,0.00086618]
[1762736777162,0.81212731,106310.0,106300.0,0.00086618]
[1762736778253,0.18818216,106280.0,106270.0,0.2]
[1762736778432,0.18819986,106270.0,106260.0,0.3234]
[1762736778639,0.02652,106270.0,106260.0,0.54647136]
[1762736778780,0.22066216,106280.0,106270.0,0.18819986]
[1762736778992,0.22066216,106280.0,106260.0,0.48364478]
[1762736778993,0.18819986,106270.0,106260.0,0.48364478]
[1762736779237,0.18819986,106270.0,106260.0,0.35984827]
[1762736779455,0.18819986,106270.0,106260.0,0.61312947]
[1762736779856,0.18819986,106270.0,106260.0,0.4279119]
[1762736780209,0.18851986,106270.0,106260.0,0.3624119]
[1762736780822,0.26412106,106270.0,106260.0,0.00354424]
[1762736781042,0.22004986,106270.0,106260.0,0.00354424]
[1762736783133,0.22004986,106270.0,106250.0,0.18866896]
[1762736783435,0.18821757,106260.0,106250.0,0.18866896]
[1762736783643,0.18821757,106260.0,106250.0,0.18823255]
[1762736784085,0.21987349,106270.0,106250.0,0.18823255]
[1762736784287,0.21987349,106270.0,106250.0,0.18870299]
[1762736784580,0.18821757,106260.0,106250.0,0.18870299]
[1762736784783,0.18821757,106260.0,106250.0,0.18823255]
[1762736785080,0.18821757,106260.0,106240.0,0.46153579]
[1762736785629,0.18823529,106250.0,106240.0,0.78453579]
[1762736785826,0.18823529,106250.0,106240.0,0.70922819]
[1762736786063,0.18823529,106250.0,106240.0,0.88760819]
[1762736786265,0.19775348,106270.0,106250.0,0.18823529]
[1762736786472,0.00014363,106270.0,106260.0,0.18821757]
[1762736786678,0.00014363,106270.0,106260.0,0.25371757]
[1762736787055,0.00014363,106270.0,106260.0,0.54784757]
[1762736787288,0.00014363,106270.0,106260.0,0.90908922]
[1762736787443,0.00014363,106270.0,106260.0,1.42338397]
[1762736787855,0.00014363,106270.0,106260.0,1.53626397]
[1762736788049,0.00014363,106270.0,106260.0,1.02243962]
[1762736788453,0.18834349,106270.0,106260.0,0.90955962]
[1762736788663,0.00114363,106270.0,106260.0,0.92830962]
[1762736789068,0.18934349,106270.0,106260.0,0.92830962]
[1762736789301,0.00114363,106270.0,106260.0,0.92830962]
[1762736789885,0.18934349,106270.0,106260.0,0.92830962]
[1762736790068,0.18934349,106270.0,106260.0,0.81542962]
[1762736790274,0.18934349,106270.0,106260.0,0.92830962]
[1762736790480,0.00114363,106270.0,106260.0,0.92827573]
[1762736790680,0.00114363,106270.0,106260.0,1.01864573]
[1762736791027,0.00114363,106270.0,106260.0,1.53247008]
[1762736791470,0.00114363,106270.0,106260.0,3.53247008]
[1762736792024,0.00114363,106270.0,106260.0,3.56865236]
[1762736792426,0.00114363,106270.0,106260.0,3.60179661]
[1762736793312,0.00014363,106270.0,106260.0,3.60179661]
[1762736793666,1.162e-05,106270.0,106260.0,3.60179661]
[1762736793893,0.00101162,106270.0,106260.0,1.48891661]
[1762736794169,0.00101162,106270.0,106260.0,1.60179661]
[1762736794529,0.00101162,106270.0,106260.0,1.60272941]
[1762736795155,19.9906631,106250.0,106240.0,2.27452577]
[1762736795357,19.9906631,106250.0,106240.0,3.48773375]
[1762736795562,19.9906631,106250.0,106240.0,3.56444364]
[1762736795724,19.9906631,106250.0,106240.0,3.59267549]
[1762736796370,19.9916631,106250.0,106240.0,3.5886755]
[1762736796569,19.9916631,106250.0,106240.0,3.59867549]
[1762736796772,19.9916631,106250.0,106240.0,3.53860126]
[1762736797092,19.9916631,106250.0,106240.0,3.57731947]
[1762736797248,19.9916631,106250.0,106240.0,3.67029175]
[1762736797451,19.9916631,106250.0,106240.0,3.35127206]
[1762736797628,19.9916631,106250.0,106240.0,3.84639175]
[1762736798260,19.9916631,106250.0,106240.0,3.26020947]
[1762736798463,19.9916631,106250.0,106240.0,3.23996187]
[1762736798668,19.9916631,106250.0,106240.0,1.55378622]
[1762736798873,19.9916631,106250.0,106240.0,3.55378622]
[1762736799107,19.9916631,106250.0,106240.0,3.75378622]
[1762736800157,19.9916631,106250.0,106240.0,3.23996187]
[1762736800291,19.9916631,106250.0,106240.0,3.76331366]
[1762736800492,19.9916631,106250.0,106240.0,3.45043366]
[1762736800695,19.9916631,106250.0,106240.0,0.93169868]
[1762736801015,19.9916631,106250.0,106240.0,3.75840303]
[1762736801215,19.9916631,106250.0,106240.0,3.78429026]
[1762736801420,19.9916631,106250.0,106240.0,3.80601723]
[1762736801885,19.9916631,106250.0,106240.0,3.84711061]
[1762736802818,19.9916631,106250.0,106240.0,3.82538364]
[1762736803228,19.9916631,106250.0,106240.0,3.84711061]
[1762736803428,19.9916631,106250.0,106240.0,3.82538364]
[1762736803640,19.9916631,106250.0,106240.0,3.82611187]
[1762736803830,19.9916631,106250.0,106240.0,3.84783884]
[1762736804087,19.8447631,106250.0,106240.0,3.99473884]
[1762736804310,19.8447631,106250.0,106240.0,3.97301187]
[1762736804618,19.8447631,106250.0,106240.0,3.82611187]
[1762736805981,19.8447631,106250.0,106240.0,3.13660978]
[1762736806143,19.8447631,106250.0,106240.0,2.72648978]
[1762736806348,19.8447631,106250.0,106240.0,3.26692959]
[1762736806662,19.8447631,106250.0,106240.0,3.46692959]
[1762736806864,19.8447631,106250.0,106240.0,3.48644243]
[1762736807041,19.8447631,106250.0,106240.0,3.80944243]
[1762736808166,19.39801048,106250.0,106240.0,3.84562471]
[1762736808491,18.97035833,106250.0,106240.0,3.84562471]
[1762736809606,18.97035833,106250.0,106240.0,5.84562471]
[1762736809978,18.97035833,106250.0,106240.0,4.24082471]
[1762736810458,18.97035833,106250.0,106240.0,3.72700036]
[1762736810664,18.97035833,106250.0,106240.0,4.24082471]
[1762736811555,18.97035833,106250.0,106240.0,4.22131187]
[1762736811930,18.97035833,106250.0,106240.0,4.10638444]
[1762736812141,18.97035833,106250.0,106240.0,4.19469641]
[1762736812357,18.97035833,106250.0,106240.0,4.21926444]
[1762736812515,18.97035833,106250.0,106240.0,3.68661641]
[1762736812710,18.97035833,106250.0,106240.0,3.82406444]
[1762736814226,18.97035833,106250.0,106240.0,3.71118444]
[1762736814425,18.97035833,106250.0,106240.0,3.82406444]
[1762736814625,18.96995833,106250.0,106240.0,2.68902978]
[1762736814833,18.96995833,106250.0,106240.0,2.37614978]
[1762736815036,18.96995833,106250.0,106240.0,1.58719168]
[1762736815237,18.96995833,106250.0,106240.0,1.44960976]
[1762736815441,18.96995833,106250.0,106240.0,2.03627277]
[1762736815646,18.96995833,106250.0,106240.0,2.0367434]
[1762736815922,18.96995833,106250.0,106240.0,2.03627277]
[1762736816398,18.96995833,106250.0,106240.0,1.67142276]
[1762736816399,19.15719362,106250.0,106240.0,1.67142276]
[1762736816633,19.15819362,106250.0,106240.0,1.85431977]
[1762736816823,18.96995833,106250.0,106240.0,1.85431977]
[1762736817463,19.15819362,106250.0,106240.0,1.58004977]
[1762736817590,18.96995833,106250.0,106240.0,1.61123977]
[1762736817999,19.15819362,106250.0,106240.0,1.61123977]
[1762736818845,18.96995833,106250.0,106240.0,1.61123977]
[1762736819054,18.96995833,106250.0,106240.0,1.69064977]
[1762736820543,18.96995833,106250.0,106240.0,1.61123977]
[1762736820739,19.15819362,106250.0,106240.0,1.61123977]
[1762736820947,18.96995833,106250.0,106240.0,1.61123977]
[1762736821427,18.96995833,106250.0,106240.0,1.70574977]
[1762736821635,18.96995833,106250.0,106240.0,2.43908696]
[1762736821845,18.96995833,106250.0,106240.0,2.46661839]
[1762736822050,18.96995833,106250.0,106240.0,1.90574977]
[1762736822246,18.96995833,106250.0,106240.0,1.9062204]
[1762736822451,19.20764362,106250.0,106240.0,1.35702976]
[1762736822648,19.30173362,106250.0,106240.0,0.09712676]
[1762736822847,19.30173362,106250.0,106240.0,0.07332907]
[1762736823048,19.81555797,106250.0,106240.0,0.07332907]
[1762736823493,19.81555797,106250.0,106240.0,0.03469843]
[1762736823692,19.81555797,106250.0,106240.0,0.00646658]
[1762736823893,19.9136597,106250.0,106240.0,0.00646658]
[1762736824404,19.9126597,106250.0,106240.0,0.00046658]
[1762736824611,19.9136597,106250.0,106240.0,0.00346658]
[1762736824987,19.9126597,106250.0,106240.0,0.00046658]
[1762736825189,19.9136597,106250.0,106240.0,0.00146658]
[1762736825356,19.39983535,106250.0,106240.0,0.00146658]
[1762736825561,20.27284198,106250.0,106240.0,0.00146658]
[1762736825764,20.28284197,106250.0,106240.0,0.00146658]
[1762736826174,20.29284196,106250.0,106240.0,1e-08]
[1762736826375,0.57533301,106240.0,106230.0,1e-08]
[1762736826663,1.35295155,106240.0,106230.0,1e-08]
[1762736827040,1.50716193,106240.0,106230.0,1e-08]
[1762736828256,1.59601799,106240.0,106230.0,1e-08]
[1762736828385,1.21294976,106240.0,106230.0,1e-08]
[1762736828595,1.20294977,106240.0,106230.0,1e-08]
[1762736828799,1.21294976,106240.0,106230.0,1e-08]
[1762736829024,1.31105149,106240.0,106230.0,1e-08]
[1762736829280,1.2585315,106240.0,106230.0,1e-08]
[1762736829666,1.26853149,106240.0,106230.0,1e-08]
[1762736829875,1.27853148,106240.0,106230.0,1e-08]
[1762736830187,1.26853149,106240.0,106230.0,1e-08]
[1762736830409,0.22445301,106230.0,106220.0,0.0004]
[1762736830623,0.37585301,106230.0,106220.0,0.0004]
[1762736831059,0.75892124,106230.0,106220.0,0.0004]
[1762736831323,1.08192124,106230.0,106220.0,0.0004]
[1762736831532,1.08192124,106230.0,106220.0,0.00088034]
[1762736831801,1.08292124,106230.0,106220.0,1e-08]
[1762736831996,1.22354297,106230.0,106220.0,1e-08]
[1762736832213,0.84047474,106230.0,106220.0,1e-08]
[1762736832443,0.84047474,106230.0,106220.0,0.00046671]
[1762736832659,1.22354297,106230.0,106220.0,0.00046671]
[1762736832882,1.22354297,106230.0,106220.0,1e-08]
[1762736833352,1.22354297,106230.0,106210.0,1e-08]
[1762736833353,1.15219717,106220.0,106210.0,1e-08]
[1762736833585,1.32238132,106220.0,106210.0,1e-08]
[1762736834436,0.93931309,106220.0,106210.0,1e-08]
[1762736834638,0.88373136,106220.0,106210.0,1e-08]
[1762736834875,0.82121138,106220.0,106210.0,1e-08]
[1762736835049,1.1100291,106220.0,106210.0,1e-08]
[1762736835458,1.14621138,106220.0,106210.0,1e-08]
[1762736836035,1.15621137,106220.0,106210.0,1e-08]
[1762736836241,1.2543131,106220.0,106210.0,1e-08]
[1762736837056,0.86124488,106220.0,106210.0,1e-08]
[1762736837385,1.2543131,106220.0,106210.0,1e-08]
[1762736837578,1.24431311,106220.0,106210.0,1e-08]
[1762736838082,0.71542664,106220.0,106210.0,1e-08]
[1762736838297,0.75160892,106220.0,106210.0,1e-08]
[1762736839038,0.75160892,106220.0,106210.0,0.00023341]
[1762736839638,1.07460892,106220.0,106210.0,0.00023341]
[1762736839936,1.07460892,106220.0,106210.0,1e-08]
[1762736840140,1.17271065,106220.0,106210.0,1e-08]
[1762736840391,1.07460892,106220.0,106210.0,1e-08]
[1762736840599,0.33235841,106220.0,106210.0,1e-08]
[1762736840763,0.71542664,106220.0,106210.0,1e-08]
[1762736841272,18.78023459,106200.0,106190.0,0.52063583]
[1762736841467,18.78023459,106200.0,106190.0,0.95641735]
[1762736841672,18.78023459,106200.0,106190.0,3.03533888]
[1762736842139,18.78023459,106200.0,106190.0,2.85227065]
[1762736842347,18.78023459,106200.0,106190.0,3.34829888]
[1762736842548,18.78023459,106200.0,106190.0,3.42904888]
[1762736842877,18.78023459,106200.0,106190.0,3.31608888]
[1762736843076,18.78023459,106200.0,106190.0,1.42904888]
[1762736843318,18.78123459,106200.0,106190.0,3.42904888]
[1762736843497,18.78023459,106200.0,106190.0,3.42904888]
[1762736843907,18.78123459,106200.0,106190.0,3.04598065]
[1762736844110,18.78023459,106200.0,106190.0,3.42904888]
[1762736844542,18.78123459,106200.0,106190.0,3.42904888]
[1762736844710,18.78023459,106200.0,106190.0,3.42904888]
[1762736844913,18.78023459,106200.0,106190.0,3.45488817]
[1762736845124,18.78023459,106200.0,106190.0,1.42904888]
[1762736845344,18.78023459,106200.0,106190.0,3.42904888]
[1762736845547,18.78023459,106200.0,106190.0,0.84598065]
[1762736845949,18.78023459,106200.0,106190.0,0.73302065]
[1762736846200,18.78123459,106200.0,106190.0,0.73302065]
[1762736846734,18.78123459,106200.0,106190.0,0.32973756]
[1762736847095,18.78123459,106200.0,106190.0,0.65273756]
[1762736847308,19.44671673,106200.0,106190.0,0.00423458]
[1762736847666,19.48289901,106200.0,106190.0,0.00423458]
[1762736847873,19.48289901,106200.0,106190.0,0.00046691]
[1762736848102,19.58100074,106200.0,106190.0,0.00046691]
[1762736848796,1.18383438,106200.0,106190.0,0.00046691]
[1762736848990,1.18283438,106200.0,106190.0,0.00046691]
[1762736849206,1.23234438,106200.0,106190.0,0.00046691]
[1762736849370,0.85027615,106200.0,106190.0,0.00046691]
[1762736849572,0.75117442,106200.0,106190.0,0.00046691]
[1762736850523,0.75217442,106200.0,106190.0,0.00046691]
[1762736850989,0.75117442,106200.0,106190.0,0.00046691]
[1762736852192,0.75217442,106200.0,106190.0,0.00046691]
[1762736853183,1.17776265,106200.0,106190.0,0.00046691]
[1762736853392,1.2924355,106200.0,106190.0,0.00046691]
[1762736853952,1.27586438,106200.0,106190.0,0.00046691]
[1762736854140,1.27486438,106200.0,106190.0,1e-08]
[1762736854378,1.29243417,106200.0,106190.0,1e-08]
[1762736854583,0.71138215,106190.0,106180.0,1e-08]
[1762736854740,0.88158634,106190.0,106180.0,1e-08]
[1762736855972,0.88358634,106190.0,106180.0,1e-08]
[1762736856176,0.88358634,106190.0,106140.0,0.00942151]
[1762736856177,0.21307262,106150.0,106140.0,0.00942151]
[1762736856381,0.02466,106150.0,106140.0,0.21669485]
[1762736856580,0.04717,106160.0,106150.0,0.18841262]
[1762736856779,0.04717,106160.0,106150.0,0.20353262]
[1762736856939,0.23556487,106160.0,106150.0,0.20353262]
[1762736857160,0.23556487,106160.0,106150.0,0.01512]
[1762736857363,0.18841262,106150.0,106140.0,0.02827197]
[1762736857567,0.20533262,106150.0,106140.0,0.21670234]
[1762736857883,0.04764966,106160.0,106150.0,0.18841262]
[1762736858215,0.04764966,106160.0,106150.0,0.17237388]
[1762736858803,0.00047966,106160.0,106150.0,0.59930823]
[1762736858986,0.00047966,106160.0,106150.0,0.67994775]
[1762736859358,0.00047966,106160.0,106150.0,0.58093775]
[1762736859662,0.34523453,106160.0,106150.0,0.37931435]
[1762736859864,0.00147966,106160.0,106150.0,0.58284697]
[1762736860070,0.18987453,106160.0,106150.0,0.39443435]
[1762736860431,0.25244453,106160.0,106150.0,0.3953686]
[1762736861090,0.25244453,106160.0,106150.0,0.3802486]
[1762736861223,0.34623453,106160.0,106150.0,0.3802486]
[1762736861420,0.25244453,106160.0,106150.0,0.56866122]
[1762736861620,0.18987453,106160.0,106150.0,0.3953686]
[1762736862058,0.18987453,106160.0,106150.0,0.58378122]
[1762736862234,0.00147966,106160.0,106150.0,0.58378122]
[1762736863210,0.18987453,106160.0,106150.0,0.3953686]
[1762736863702,0.18987453,106160.0,106150.0,0.58378122]
[1762736863902,0.18987453,106160.0,106150.0,0.3953686]
[1762736864798,0.25244453,106160.0,106150.0,0.3802486]
[1762736865001,0.34623453,106160.0,106150.0,0.3802486]
[1762736865200,0.82578782,106160.0,106150.0,0.02920276]
[1762736865383,0.72930276,106160.0,106150.0,0.00093425]
[1762736865589,0.76548504,106160.0,106150.0,0.00093425]
[1762736865823,0.34623453,106160.0,106150.0,0.00093425]
[1762736865995,0.34623453,106160.0,106150.0,0.18934687]
[1762736866173,0.25244453,106160.0,106150.0,0.20446687]
[1762736866589,0.25244453,106160.0,106150.0,0.64629943]
[1762736866590,0.00147966,106160.0,106150.0,0.64629943]
[1762736867390,0.00147966,106160.0,106150.0,0.73170045]
[1762736869214,0.00147966,106160.0,106150.0,0.64677045]
[1762736869386,0.00147966,106160.0,106150.0,0.73135045]
[1762736869555,0.00147966,106160.0,106150.0,0.64677045]
[1762736869751,0.00147966,106160.0,106150.0,0.06230102]
[1762736869960,0.00147966,106160.0,106140.0,0.67049417]
[1762736870581,0.00147966,106160.0,106140.0,0.26514594]
[1762736870807,0.00147966,106160.0,106140.0,0.60255417]
[1762736871221,0.1898751,106160.0,106140.0,0.21116652]
[1762736871419,0.18841262,106150.0,106140.0,0.0227371]
[1762736871619,0.18841262,106150.0,106140.0,0.2225254]
[1762736871854,0.24974262,106150.0,106140.0,0.2225254]
[1762736872034,0.34408262,106150.0,106140.0,0.2245254]
[1762736872460,0.34408262,106150.0,106140.0,0.0756254]
[1762736872683,0.34508262,106150.0,106140.0,0.0776254]
[1762736873109,0.001,106150.0,106140.0,0.0776254]
[1762736873327,0.34508262,106150.0,106140.0,0.4006254]
[1762736873746,0.34508262,106150.0,106140.0,0.3394171]
[1762736873747,0.18941262,106150.0,106140.0,0.3394171]
[1762736873963,0.36863419,106150.0,106140.0,0.38381775]
[1762736874188,0.34508262,106150.0,106140.0,0.38381775]
[1762736874406,0.34508262,106150.0,106140.0,2.23758241]
[1762736874407,0.001,106150.0,106140.0,2.23758241]
[1762736874651,0.001,106150.0,106140.0,2.28868105]
[1762736874867,0.001,106150.0,106140.0,1.89561283]
[1762736875073,0.001,106150.0,106140.0,1.85943055]
[1762736875276,0.001,106150.0,106140.0,2.24249878]
[1762736875438,0.00047966,106160.0,106140.0,2.24049878]
[1762736875628,0.00047966,106160.0,106140.0,0.74211388]
[1762736875858,0.001,106150.0,106140.0,0.74411388]
[1762736876057,0.001,106150.0,106140.0,1.18926757]
[1762736876379,0.001,106150.0,106140.0,0.8213285]
[1762736876551,0.001,106150.0,106140.0,0.90856136]
[1762736876770,0.001,106150.0,106140.0,2.90856136]
[1762736876982,0.001,106150.0,106140.0,2.90879499]
[1762736877771,0.001,106150.0,106140.0,3.31763036]
[1762736878868,0.001,106150.0,106140.0,2.93456213]
[1762736879076,0.001,106150.0,106140.0,2.97074441]
[1762736879293,0.001,106150.0,106140.0,2.90879499]
[1762736879510,0.001,106150.0,106140.0,0.90879499]
[1762736880836,0.04893,106150.0,106140.0,0.79579499]
[1762736881035,0.001,106150.0,106140.0,3.2150455]
[1762736881430,0.001,106150.0,106140.0,2.83197727]
[1762736881637,0.00110889,106160.0,106150.0,0.18841262]
[1762736881837,0.00110889,106160.0,106150.0,0.06024748]
[1762736882079,0.00110889,106160.0,106150.0,0.2486601]
[1762736882322,0.00110889,106160.0,106150.0,0.4486601]
[1762736882693,0.00110889,106160.0,106150.0,0.26024748]
[1762736882895,0.25310376,106160.0,106150.0,0.06024748]
[1762736883109,0.34871376,106160.0,106150.0,0.06024748]
[1762736883451,0.25310376,106160.0,106150.0,0.20714748]
[1762736883592,0.34871376,106160.0,106150.0,0.53014748]
[1762736883807,1.21165926,106160.0,106140.0,0.00023363]
[1762736883999,0.05790157,106150.0,106140.0,0.04279363]
[1762736884205,0.00210889,106160.0,106150.0,0.003]
[1762736884438,0.00210889,106160.0,106150.0,0.19141262]
[1762736884605,0.00110889,106160.0,106150.0,0.57686849]
[1762736885005,0.00210889,106160.0,106150.0,0.38845587]
[1762736885233,0.18950376,106160.0,106150.0,0.38845587]
[1762736885465,0.00110889,106160.0,106150.0,0.57686849]
[1762736885612,0.00210889,106160.0,106150.0,0.57886849]
[1762736885796,0.00110889,106160.0,106150.0,0.57686849]
[1762736886195,0.00210889,106160.0,106150.0,0.57986849]
[1762736888075,0.00210889,106160.0,106150.0,0.39145587]
[1762736888288,0.19050376,106160.0,106150.0,0.39145587]
[1762736888510,0.34971376,106160.0,106150.0,0.39145587]
[1762736888675,1.11585022,106160.0,106150.0,0.39145587]
[1762736888884,0.86545488,106160.0,106150.0,0.39145587]
[1762736889907,0.86545488,106160.0,106150.0,0.06845587]
[1762736890116,0.86545488,106160.0,106150.0,0.003]
[1762736896269,0.58145001,106160.0,106150.0,0.19141262]
[1762736896470,0.51785001,106160.0,106150.0,0.51441262]
[1762736896705,0.51785001,106160.0,106150.0,0.77925708]
[1762736897315,0.51785001,106160.0,106150.0,0.59084446]
[1762736897563,0.86545488,106160.0,106150.0,0.39084446]
[1762736898123,0.86545488,106160.0,106150.0,0.06784446]
[1762736898323,0.86545488,106160.0,106150.0,0.003]
[1762736898649,0.86592586,106160.0,106150.0,0.003]
[1762736898850,0.86545488,106160.0,106150.0,0.003]
[1762736901032,0.86592586,106160.0,106150.0,0.003]
[1762736901471,0.70624488,106160.0,106150.0,0.003]
[1762736901651,0.70624488,106160.0,106150.0,0.07159164]
[1762736901851,0.51785001,106160.0,106150.0,0.26000426]
[1762736902072,0.51785001,106160.0,106150.0,2.57800426]
[1762736902073,0.00210889,106160.0,106150.0,2.57800426]
[1762736902274,0.00210889,106160.0,106150.0,2.61418654]
[1762736902486,0.00210889,106160.0,106150.0,2.61807883]
[1762736903242,0.00210889,106160.0,106150.0,2.65155844]
[1762736903439,0.00210889,106160.0,106150.0,2.66155843]
[1762736903978,0.00110889,106160.0,106150.0,2.66155843]
[1762736904380,0.00210889,106160.0,106150.0,2.66655843]
[1762736904793,0.34333624,106210.0,106190.0,0.51132769]
[1762736904794,0.23775693,106210.0,106190.0,0.51132769]
[1762736905052,0.51574112,106200.0,106190.0,0.32313201]
[1762736905256,0.51574112,106200.0,106190.0,0.57811461]
[1762736905874,0.51574112,106200.0,106190.0,0.38977296]
[1762736906081,0.51574112,106200.0,106190.0,0.39254293]
[1762736906410,0.51574112,106200.0,106190.0,0.58088458]
[1762736906754,0.51574112,106200.0,106190.0,0.58188458]
[1762736907017,0.51574112,106200.0,106190.0,0.58088458]
[1762736907382,0.51674112,106200.0,106190.0,0.58188458]
[1762736907966,0.51674112,106200.0,106190.0,0.59354293]
[1762736908185,0.70506503,106200.0,106190.0,0.07054293]
[1762736908425,0.86427503,106200.0,106190.0,0.39354293]
[1762736908628,0.58034112,106200.0,106190.0,0.58188458]
[1762736908833,0.51674112,106200.0,106190.0,0.58188458]
[1762736908968,0.51674112,106200.0,106190.0,0.39354293]
[1762736909175,0.51674112,106200.0,106190.0,0.58188458]
[1762736909384,0.16093,106200.0,106190.0,0.39354293]
[1762736909583,0.86499503,106200.0,106190.0,0.39354293]
[1762736910615,0.8659289,106200.0,106190.0,0.39354293]
[1762736912341,0.8659289,106200.0,106190.0,0.07054293]
[1762736912781,0.18835938,106180.0,106170.0,0.01855355]
[1762736912955,0.7041005,106180.0,106170.0,0.08830533]
[1762736913580,0.8640305,106180.0,106170.0,0.08830533]
[1762736913810,0.8640305,106180.0,106170.0,0.01869697]
[1762736914172,0.8650305,106180.0,106170.0,0.02669697]
[1762736915399,0.8650305,106180.0,106170.0,0.02069697]
[1762736915810,0.8640305,106180.0,106170.0,0.02369697]
[1762736916141,0.8640305,106180.0,106170.0,0.02469697]
[1762736916390,0.8640305,106180.0,106170.0,0.01969697]
[1762736916630,0.58029112,106180.0,106170.0,0.2100741]
[1762736916862,0.58129112,106180.0,106170.0,0.2110741]
[1762736917095,0.001,106180.0,106170.0,0.60409407]
[1762736917702,0.51674112,106180.0,106170.0,0.60409407]
[1762736918204,0.00146703,106180.0,106170.0,0.60409407]
[1762736918746,0.00146703,106180.0,106170.0,2.60409407]
[1762736921488,0.00146703,106180.0,106170.0,1.94739407]
[1762736921676,0.00146703,106180.0,106170.0,1.93719407]
[1762736921825,0.00146703,106180.0,106170.0,1.88949407]
[1762736922026,0.00146703,106180.0,106170.0,1.84289407]
[1762736922845,0.00146703,106180.0,106170.0,1.80859407]
[1762736923088,0.00146703,106180.0,106170.0,1.76079407]
[1762736923300,0.00146703,106180.0,106170.0,1.42241694]
[1762736923639,0.77011753,106180.0,106170.0,0.41571694]
[1762736923842,0.86549753,106180.0,106170.0,0.09271694]
[1762736924389,0.86549753,106180.0,106170.0,0.41571694]
[1762736927063,0.77011753,106180.0,106170.0,0.60409407]
[1762736927265,0.58175815,106180.0,106170.0,0.60409407]
[1762736927468,0.00146703,106180.0,106170.0,0.60409407]
[1762736928683,0.00146703,106180.0,106170.0,1.82681747]
[1762736928897,0.04840067,106230.0,106220.0,0.18828845]
[1762736929087,0.66165175,106240.0,106220.0,0.26565515]
[1762736929289,0.66165175,106240.0,106220.0,0.18828845]
[1762736929586,0.84990515,106240.0,106220.0,0.18828845]
[1762736929768,0.33416432,106240.0,106220.0,0.18828845]
[1762736929966,0.1460546,106240.0,106230.0,0.18827073]
[1762736930168,0.04807397,106240.0,106230.0,0.18827073]
[1762736930368,0.29828762,106240.0,106220.0,0.18828845]
[1762736930568,0.29875822,106240.0,106220.0,0.18828845]
[1762736930822,0.006,106230.0,106220.0,0.51128845]
[1762736931026,0.006,106230.0,106220.0,0.58934783]
[1762736931228,0.23679976,106240.0,106220.0,0.58934783]
[1762736931436,0.23679976,106240.0,106220.0,0.52325738]
[1762736931657,0.23979976,106240.0,106220.0,0.5122884]
[1762736931788,0.33730976,106240.0,106220.0,0.5122884]
[1762736931985,0.85005088,106240.0,106220.0,0.5112884]
[1762736932196,0.004,106230.0,106220.0,0.5122884]
[1762736932405,0.004,106230.0,106220.0,0.58711449]
[1762736932602,0.001,106230.0,106220.0,0.58611449]
[1762736932812,0.001,106230.0,106220.0,0.58711449]
[1762736933430,0.85305088,106240.0,106220.0,0.58711449]